Workbook

Sheet Please read
A3: Software | C3: These excels use the program "@risk" from Palisade (www.palisade.com) to run. Were one to open this in Excel and see a lot of #NAME? it means that @risk is not in the computer or loaded incorrectly
A5: Data | C5: The data are all from WEO (forecasts). They are in the "Data" worksheet. They are current as of March 2017
A7: Simulations | C7: The inputs for the simulation are:
C8: a) forecasts (these are automatic, once the data from WEO are pulled into the Data worksheet)
C9: b) the correlation matrix (Cells AQ24 to AV29); using the "Define Correlations" algorithm in @risk (see the picture below)
C10: c) the foreign currency composition of A and L (from Benetrix, Lane and Shambaugh 2015)
C11: d) the elasticity of NX to the exchange rate (cells AA2 to AA7)
A15: To Implement | C15: Once @risk is available (it loads in Excel), you can run the program by "Start simulation" (change iterations to whatever is needed). The output of the simulations are in Excel reports (you can choose what to output)

Sheet Data
C2: country= | D2: United States
C3: ifs_code= | D3: 111
C4: Year= | D4: 2013
B6: t | C6: ifs_code | D6: Country | E6: Year | F6: Y (Nominal Billions USD) | G6: X (Nominal Billions USD) | H6: Q (Nominal Billions USD) | R6: nfa GM | S6: Potential Output (Constant Prices, LCU, Billions) | T6: Long Term Bond Yield | U6: Growth Rate Potential Output | V6: Trade Balance (% of GDP) | AA6: trade balance + sib | AB6: trade balance | AC6: sib | AD6: sib/gdp | AE6: pib | AF6: pib/gdp | AG6: assets | AH6: assets/gdp | AI6: liabilities | AJ6: liabilities/gdp | AK6: yield on assets | AL6: yield on liabilities | AM6: yield on assets in $ | AN6: yield on liabilities in $ | AO6: pcpi | AP6: inflation | AQ6: NGDP_R
X7: Return, FA | Y7: Return, FL
B8: =B9-1 -> -31 | C8: =$D$3 -> 111 | D8: =$D$2 -> United States | E8: =+E9-1 -> 1982 | F8: 3345 | G8: 275.236 | H8: 299.39 | I8: 1982 | S8: 6918.123496 | T8: 6.842475562 | U8: n.a. | W8: 1982 | Z8: 1982 | AA8: -0.01216741405 | AB8: -0.007220926756 | AC8: -16.546 | AD8: -0.004946487294 | AE8: 35.164 | AF8: 0.01051240658 | AM8: 96.52 | AN8: 61.356 | AO8: 96.53333333 | AQ8: 6491.275
B9: -30 | C9: 111 | D9: United States | E9: 1983 | F9: 3638.125 | G9: 266.11 | H9: 323.879 | I9: 1983 | S9: 7129.32874 | T9: 7.945469613 | U9: 0.03052926767 | W9: 1983 | Z9: 1983 | AA9: -0.02063645422 | AB9: -0.01587878371 | AC9: -17.309 | AD9: -0.004757670503 | AE9: 36.164 | AF9: 0.009940285174 | AM9: 96.031 | AN9: 59.647 | AO9: 99.58333333 | AP9: 0.03110644273 | AQ9: 6792
B10: -29 | C10: 111 | D10: United States | E10: 1984 | F10: 4040.7 | G10: 291.094 | H10: 400.166 | I10: 1984 | S10: 7358.205802 | T10: 8.070132497 | U10: 0.03210359208 | W10: 1984 | Z10: 1984 | AA10: -0.03202613409 | AB10: -0.02699334274 | AC10: -20.336 | AD10: -0.005032791348 | AE10: 37.164 | AF10: 0.009197416289 | AM10: 115.64 | AN10: 80.572 | AO10: 103.9333333 | AP10: 0.04275485338 | AQ10: 7285.025
B11: -28 | C11: 111 | D11: United States | E11: 1985 | F11: 4346.75 | G11: 289.073 | H11: 410.954 | I11: 1985 | S11: 7615.39622 | T11: 7.095430832 | U11: 0.03495287093 | W11: 1985 | Z11: 1985 | AA11: -0.0331005924 | AB11: -0.02803956979 | AC11: -21.999 | AD11: -0.005061022603 | AE11: 38.164 | AF11: 0.008779893024 | AM11: 105.046 | AN11: 79.325 | AO11: 107.6 | AP11: 0.03467097977 | AQ11: 7593.8
B12: -27 | C12: 111 | D12: United States | E12: 1986 | F12: 4590.125 | G12: 310.038 | H12: 448.572 | I12: 1986 | S12: 7893.429284 | T12: 5.738571871 | U12: 0.0365093366 | W12: 1986 | Z12: 1986 | AA12: -0.03543868631 | AB12: -0.03018087743 | AC12: -24.134 | AD12: -0.005257808883 | AE12: 39.164 | AF12: 0.008532229514 | AM12: 102.798 | AN12: 87.306 | AO12: 109.6916667 | AP12: 0.01925275192 | AQ12: 7860.5
B13: -26 | C13: 111 | D13: United States | E13: 1987 | F13: 4870.225 | G13: 348.865 | H13: 500.554 | I13: 1987 | S13: 8158.369541 | T13: 4.805955013 | U13: 0.03356465835 | W13: 1987 | Z13: 1987 | AA13: -0.03592257031 | AB13: -0.03114619961 | AC13: -23.262 | AD13: -0.004776370702 | AE13: 40.164 | AF13: 0.008246846912 | AM13: 113.603 | AN13: 99.312 | AO13: 113.6166667 | AP13: 0.0351568095 | AQ13: 8132.6
B14: -25 | C14: 111 | D14: United States | E14: 1988 | F14: 5252.625 | G14: 431.15 | H14: 545.719 | I14: 1988 | S14: 8416.736722 | T14: 4.745789326 | U14: 0.0316689726 | W14: 1988 | Z14: 1988 | AA14: -0.02662383094 | AB14: -0.02181176079 | AC14: -25.276 | AD14: -0.004812070155 | AE14: 41.164 | AF14: 0.007836843483 | AM14: 141.667 | AN14: 122.983 | AO14: 118.275 | AP14: 0.04018221238 | AQ14: 8474.5
B15: -24 | C15: 111 | D15: United States | E15: 1989 | F15: 5657.7 | G15: 487.005 | H15: 580.144 | I15: 1989 | S15: 8672.57227 | T15: 3.708072465 | U15: 0.03039604963 | W15: 1989 | Z15: 1989 | AA15: -0.02108789791 | AB15: -0.01646234336 | AC15: -26.17 | AD15: -0.004625554554 | AE15: 42.164 | AF15: 0.007452498365 | AM15: 166.385 | AN15: 146.562 | AO15: 123.9416667 | AP15: 0.04679860329 | AQ15: 8786.375
B16: -23 | C16: 111 | D16: United States | E16: 1990 | F16: 5979.575 | G16: 535.235 | H16: 616.093 | I16: 1990 | J16: 0.1727778 | K16: 0.2048984 | L16: 0.3675245 | M16: 0.05614417 | N16: -0.04599247 | P16: 0.148754 | S16: 8957.009054 | T16: 3.130783971 | U16: 0.03279728039 | W16: 1990 | Z16: 1990 | AA16: -0.01798020762 | AB16: -0.01352236572 | AC16: -26.656 | AD16: -0.004457841903 | AE16: 43.164 | AF16: 0.007218573226 | AM16: 176.895 | AN16: 148.346 | AO16: 130.6583333 | AP16: 0.05277474877 | AQ16: 8955.025
B17: -22 | C17: 111 | D17: United States | E17: 1991 | F17: 6174.05 | G17: 578.345 | H17: 609.48 | I17: 1991 | J17: 0.165739 | K17: 0.2308751 | L17: 0.3956025 | M17: 0.05994879 | N17: -0.05893719 | P17: 0.170926 | S17: 9210.963859 | T17: 3.642503242 | U17: 0.02835263461 | W17: 1991 | Z17: 1991 | AA17: -0.003439395535 | AB17: -0.005042881091 | AC17: 9.9 | AD17: 0.001603485556 | AE17: 44.164 | AF17: 0.007153165264 | AM17: 155.332 | AN17: 131.201 | AO17: 136.1666667 | AP17: 0.04129385205 | AQ17: 8948.425
B18: -21 | C18: 111 | D18: United States | E18: 1992 | F18: 6539.3 | G18: 616.88 | H18: 656.09 | I18: 1992 | J18: 0.1576105 | K18: 0.2178052 | L18: 0.4005241 | M18: 0.06001808 | N18: -0.08512648 | P18: 0.157787 | S18: 9468.914354 | T18: 3.968384333 | U18: 0.02800472343 | W18: 1992 | Z18: 1992 | AA18: -0.01159864206 | AB18: -0.005996054624 | AC18: -36.637 | AD18: -0.005602587433 | AE18: 45.164 | AF18: 0.006906549631 | AM18: 139.08 | AN18: 114.845 | AO18: 140.3083333 | AP18: 0.02996275624 | AQ18: 9266.55
B19: =B20-1 -> -20 | C19: =$D$3 -> 111 | D19: =$D$2 -> United States | E19: =+E20-1 -> 1993 | F19: 6878.7 | G19: 642.857 | H19: 713.175 | I19: 1993 | J19: 0.1598096 | K19: 0.2891406 | L19: 0.4210699 | M19: 0.06496212 | N19: -0.03708182 | P19: 0.224179 | S19: 9714.159236 | T19: 2.903683158 | U19: 0.0259 | W19: 1993 | Z19: 1993 | AA19: -0.01601029264 | AB19: -0.01022257113 | AC19: -39.812 | AD19: -0.005787721517 | AE19: 46.164 | AF19: 0.006711151816 | AM19: 141.605 | AN19: 116.288 | AO19: 144.475 | AP19: 0.02926410033 | AQ19: 9521
B20: -19 | C20: =$D$3 -> 111 | D20: =$D$2 -> United States | E20: 1994 | F20: 7308.775 | G20: 703.257 | H20: 801.749 | I20: 1994 | J20: 0.1629616 | K20: 0.2916378 | L20: 0.4152612 | M20: 0.07261724 | N20: -0.03327904 | P20: 0.219021 | S20: 9979.355783 | T20: 4.484395224 | U20: 0.0273 | W20: 1994 | Z20: 1994 | AA20: -0.01898512405 | AB20: -0.01347585608 | AC20: -40.266 | AD20: -0.005509267969 | AE20: 47.164 | AF20: 0.00645306498 | AM20: 169.447 | AN20: 152.3 | AO20: 148.225 | AP20: 0.02562490739 | AQ20: 9905.45
B21: -18 | C21: 111 | D21: United States | E21: 1995 | F21: 7664.05 | G21: 794.384 | H21: 890.773 | I21: 1995 | J21: 0.1742066 | K21: 0.348024 | L21: 0.4903389 | M21: 0.08692428 | N21: -0.05503258 | P21: 0.2611 | S21: 10267.75917 | T21: 3.774580311 | U21: 0.0289 | W21: 1995 | Z21: 1995 | AA21: -0.01754450976 | AB21: -0.01257677077 | AC21: -38.073 | AD21: -0.004967738989 | AE21: 48.164 | AF21: 0.006284405765 | AM21: 213.661 | AN21: 192.77 | AO21: 152.3833333 | AP21: 0.02766788635 | AQ21: 10174.75
B22: -17 | C22: 111 | D22: United States | E22: 1996 | F22: 8100.175 | G22: 851.598 | H22: 955.668 | I22: 1996 | J22: 0.1933275 | K22: 0.3892794 | L22: 0.5590253 | M22: 0.08201035 | N22: -0.05842875 | P22: 0.307269 | S22: 10594.27391 | T22: 3.501660469 | U22: 0.0318 | W22: 1996 | Z22: 1996 | AA22: -0.01815874348 | AB22: -0.01284787057 | AC22: -43.019 | AD22: -0.005310872913 | AE22: 49.164 | AF22: 0.006069498498 | AM22: 229.529 | AN22: 207.214 | AO22: 156.8583333 | AP22: 0.0289437866 | AQ22: 10561
B23: -16 | C23: 111 | D23: United States | E23: 1997 | F23: 8608.525 | G23: 934.457 | H23: 1042.727 | I23: 1997 | J23: 0.2088172 | K23: 0.4297897 | L23: 0.6721349 | M23: 0.07468798 | N23: -0.10821598 | P23: 0.355102 | S23: 10943.88495 | T23: 4.014934256 | U23: 0.033 | W23: 1997 | Z23: 1997 | AA23: -0.01781141369 | AB23: -0.0125770675 | AC23: -45.06 | AD23: -0.005234346186 | AE23: 50.164 | AF23: 0.005827246828 | AM23: 261.358 | AN23: 248.748 | AO23: 160.525 | AP23: 0.02310663114 | AQ23: 11034.85
B24: -15 | C24: 111 | D24: United States | E24: 1998 | F24: 9089.15 | G24: 933.172 | H24: 1099.317 | I24: 1998 | J24: 0.210137 | K24: 0.4876854 | L24: 0.7616165 | M24: 0.06722937 | N24: -0.13102347 | P24: 0.420456 | S24: 11330.20408 | T24: 3.717159451 | U24: 0.0353 | W24: 1998 | Z24: 1998 | AA24: -0.02413118939 | AB24: -0.01827948708 | AC24: -53.187 | AD24: -0.005851702304 | AE24: 51.164 | AF24: 0.005629129237 | AM24: 266.242 | AN24: 261.978 | AO24: 163.0083333 | AP24: 0.01535163056 | AQ24: 11525.875
B25: -14 | C25: 111 | D25: United States | E25: 1999 | F25: 9660.625 | G25: 969.867 | H25: 1228.486 | I25: 1999 | J25: 0.2148117 | K25: 0.5753722 | L25: 0.8572143 | M25: 0.05309301 | N25: -0.12012341 | P25: 0.522279 | S25: 11734.69237 | T25: 3.443527257 | U25: 0.0357 | W25: 1999 | Z25: 1999 | AA25: -0.03182640875 | AB25: -0.02677042117 | AC25: -48.844 | AD25: -0.005055987578 | AE25: 52.164 | AF25: 0.005399650644 | AM25: 300.304 | AN25: 288.364 | AO25: 166.5833333 | AP25: 0.02169436047 | AQ25: 12065.9
B26: -13 | C26: 111 | D26: United States | E26: 2000 | F26: 10284.75 | G26: 1075.321 | H26: 1447.837 | I26: 2000 | J26: 0.2373044 | K26: 0.5092995 | L26: 0.8663382 | M26: 0.04862792 | N26: -0.16836222 | P26: 0.460672 | S26: 12148.92701 | T26: 2.662483325 | U26: 0.0353 | W26: 2000 | Z26: 2000 | AA26: -0.04180334962 | AB26: -0.03622022898 | AC26: -57.421 | AD26: -0.00558312064 | AE26: 53.164 | AF26: 0.005169206835 | AM26: 358.822 | AN26: 339.643 | AO26: 172.1916667 | AP26: 0.03311251277 | AQ26: 12559.65
B27: -12 | C27: 111 | D27: United States | E27: 2001 | F27: 10621.825 | G27: 1005.653 | H27: 1367.16 | I27: 2001 | J27: 0.2428708 | K27: 0.4361546 | L27: 0.8685518 | M27: 0.04926327 | N27: -0.23878967 | P27: 0.386891 | S27: 12557.13096 | T27: 2.200871243 | U27: 0.0336 | W27: 2001 | Z27: 2001 | AA27: -0.04001638137 | AB27: -0.0340343585 | AC27: -63.54 | AD27: -0.005982022863 | AE27: 54.164 | AF27: 0.00509931203 | AM27: 298.204 | AN27: 268.476 | AO27: 177.0416667 | AP27: 0.02777691229 | AQ27: 12682.25
B28: -11 | C28: 111 | D28: United States | E28: 2002 | F28: 10977.525 | G28: 978.704 | H28: 1397.661 | I28: 2002 | J28: 0.2735925 | K28: 0.3661364 | L28: 0.8279531 | M28: 0.05415367 | N28: -0.24237787 | P28: 0.311983 | S28: 12917.52062 | T28: 3.015163764 | U28: 0.0287 | W28: 2002 | Z28: 2002 | AA28: -0.04402294688 | AB28: -0.03816497799 | AC28: -64.306 | AD28: -0.005857968896 | AE28: 55.164 | AF28: 0.00502517644 | AM28: 287.509 | AN28: 262.33 | AO28: 179.8666667 | AP28: 0.0158307259 | AQ28: 12908.775
B29: -10 | C29: 111 | D29: United States | E29: 2003 | F29: 11510.675 | G29: 1020.417 | H29: 1514.308 | I29: 2003 | J29: 0.2666063 | K29: 0.4797094 | L29: 0.910145 | M29: 0.05875904 | N29: -0.22258834 | P29: 0.42095 | S29: 13257.25141 | T29: 1.717001483 | U29: 0.0263 | W29: 2003 | Z29: 2003 | AA29: -0.04900703043 | AB29: -0.04290721439 | AC29: -70.213 | AD29: -0.00609981604 | AE29: 56.164 | AF29: 0.004879296827 | AM29: 326.693 | AN29: 283.939 | AO29: 184 | AP29: 0.02271992194 | AQ29: 13271.1
B30: -9 | C30: 111 | D30: United States | E30: 2004 | F30: 12274.925 | G30: 1161.549 | H30: 1771.433 | I30: 2004 | J30: 0.3059572 | K30: 0.5454646 | L30: 0.9934605 | M30: 0.07697377 | N30: -0.21901247 | P30: 0.468491 | S30: 13586.03124 | T30: 1.606594203 | U30: 0.0248 | W30: 2004 | Z30: 2004 | AA30: -0.05685541867 | AB30: -0.04968535449 | AC30: -88.012 | AD30: -0.007170064176 | AE30: 57.164 | AF30: 0.004656973464 | AM30: 420.59 | AN30: 356.463 | AO30: 188.9083333 | AP30: 0.02632613098 | AQ30: 13773.475
B31: -8 | C31: 111 | D31: United States | E31: 2005 | F31: 13093.7 | G31: 1286.023 | H31: 2000.266 | I31: 2005 | S31: 13912.09599 | T31: 0.9241700119 | U31: 0.024 | W31: 2005 | Z31: 2005 | AA31: -0.06209589344 | AB31: -0.05454859971 | AC31: -98.822 | AD31: -0.007547293737 | AE31: 58.164 | AF31: 0.004442136295 | AM31: 543.98 | AN31: 476.349 | AO31: 195.2666667 | AP31: 0.03310425714 | AQ31: 14234.25
B32: -7 | C32: 111 | D32: United States | E32: 2006 | F32: 13855.9 | G32: 1457.643 | H32: 2219.358 | I32: 2006 | S32: 14240.42146 | T32: 1.569577216 | U32: 0.0236 | W32: 2006 | Z32: 2006 | AA32: -0.06135025513 | AB32: -0.05497405437 | AC32: -88.348 | AD32: -0.006376200752 | AE32: 59.164 | AF32: 0.004269949985 | AG32: 16409.857 | AH32: 1.184322707 | AI32: 18218.331 | AJ32: 1.314842847 | AM32: 693.089 | AN32: 649.753 | AO32: 201.5583333 | AP32: 0.03171268922 | AQ32: 14613.8
B33: -6 | C33: 111 | D33: United States | E33: 2007 | F33: 14477.625 | G33: 1653.547 | H33: 2358.923 | I33: 2007 | S33: 14563.67903 | T33: 1.758616371 | U33: 0.0227 | W33: 2007 | Z33: 2007 | AA33: -0.05658732009 | AB33: -0.04872180347 | AC33: -113.874 | AD33: -0.007865516616 | AE33: 60.164 | AF33: 0.004155653983 | AG33: 20704.503 | AH33: 1.430103556 | AI33: 21983.996 | AJ33: 1.518480828 | AK33: 0.05001891652 | AL33: 0.03968355395 | AM33: 844.033 | AN33: 743.429 | AO33: 207.3441667 | AP33: 0.02830121857 | AQ33: 14873.75
B34: -5 | C34: 111 | D34: United States | E34: 2008 | F34: 14718.575 | G34: 1841.612 | H34: 2550.338 | I34: 2008 | S34: 14892.81817 | T34: -0.1482867321 | U34: 0.0226 | W34: 2008 | Z34: 2008 | AA34: -0.0568627058 | AB34: -0.04815180817 | AC34: -128.212 | AD34: -0.008710897624 | AE34: 61.164 | AF34: 0.004155565332 | AG34: 19423.416 | AH34: 1.319653295 | AI34: 23418.718 | AJ34: 1.591099546 | AK34: 0.03834825041 | AL34: 0.02970832755 | AM34: 823.708 | AN34: 677.56 | AO34: 215.25425 | AP34: 0.03743983409 | AQ34: 14830.375
B35: -4 | C35: 111 | D35: United States | E35: 2009 | F35: 14418.725 | G35: 1583.053 | H35: 1966.828 | I35: 2009 | S35: 15187.69597 | T35: 3.577024259 | U35: 0.0198 | W35: 2009 | Z35: 2009 | AA35: -0.03520484648 | AB35: -0.02661643106 | AC35: -123.834 | AD35: -0.008588415411 | AE35: 62.164 | AF35: 0.004311338208 | AG35: 19426.459 | AH35: 1.347307685 | AI35: 22054.085 | AJ35: 1.529544741 | AK35: 0.03173266304 | AL35: 0.02102480115 | AM35: 614.379 | AN35: 490.794 | AO35: 214.5646667 | AP35: -0.003208718361 | AQ35: 14418.75
B36: -3 | C36: 111 | D36: United States | E36: 2010 | F36: 14964.4 | G36: 1853.604 | H36: 2348.263 | I36: 2010 | S36: 15379.06094 | T36: 1.577597117 | U36: 0.0126 | W36: 2010 | Z36: 2010 | AA36: -0.04140647136 | AB36: -0.03305571891 | AC36: -124.964 | AD36: -0.008350752452 | AE36: 63.164 | AF36: 0.004220951057 | AG36: 21767.827 | AH36: 1.454640814 | AI36: 24279.615 | AJ36: 1.622491714 | AK36: 0.03469367276 | AL36: 0.0226330482 | AM36: 684.916 | AN36: 507.254 | AO36: 218.0761667 | AP36: 0.01623322091 | AQ36: 14783.8
B37: -2 | C37: 111 | D37: United States | E37: 2011 | F37: 15517.925 | G37: 2127.021 | H37: 2675.646 | I37: 2011 | S37: 15582.06455 | T37: -0.35687598 | U37: 0.0132 | W37: 2011 | Z37: 2011 | AA37: -0.04390509685 | AB37: -0.03535427578 | AC37: -132.691 | AD37: -0.008550821067 | AE37: 64.164 | AF37: 0.004134831171 | AG37: 22208.896 | AH37: 1.431176913 | AI37: 26663.893 | AJ37: 1.718264072 | AK37: 0.03385479276 | AL37: 0.02152464813 | AM37: 759.727 | AN37: 538.766 | AO37: 224.923 | AP37: 0.03091373126 | AQ37: 15020.575
B38: =B39-1 -> -1 | C38: 111 | D38: United States | E38: =+E39-1 -> 2012 | F38: 16155.25 | G38: 2218.988 | H38: 2755.762 | I38: 2012 | S38: 15828.26117 | T38: -0.2738527562 | U38: 0.0158 | W38: 2012 | Z38: 2012 | AA38: -0.04099732285 | AB38: -0.03322597917 | AC38: -125.548 | AD38: -0.007771343681 | AE38: 65.164 | AF38: 0.004033611365 | AG38: 22562.162 | AH38: 1.396583897 | AI38: 27080.461 | AJ38: 1.676263815 | AK38: 0.03392754732 | AL38: 0.02032866507 | AM38: 768.955 | AN38: 553.164 | AO38: 229.5860833 | AP38: 0.02051992854 | AQ38: 15354.625
B39: 0 | C39: 111 | D39: United States | E39: =$D$4 -> 2013 | F39: 16691.5 | G39: 2293.457 | H39: 2755.334 | I39: 2013 | J39: 0.3059572 | K39: 0.5454646 | L39: 0.9934605 | M39: 0.07697377 | N39: -0.21901247 | S39: 16110.00421 | T39: 0.8866565041 | U39: 0.0178 | W39: 2013 | Z39: 2013 | AA39: -0.03507120391 | AB39: -0.02767138963 | AC39: -123.514 | AD39: -0.007399814277 | AE39: 66.164 | AF39: 0.003963933739 | AG39: 24144.775 | AH39: 1.446531169 | AI39: 29517.429 | AJ39: 1.768410808 | AK39: 0.03471606011 | AL39: 0.02095377212 | AM39: 794.659 | AN39: 575.689 | AO39: 232.9489167 | AP39: 0.01454113781 | AQ39: 15612.175
B40: 1 | C40: 111 | D40: United States | E40: =+E39+1 -> 2014 | F40: 17393.1 | G40: 2376.578 | H40: 2866.753 | I40: 2014 | S40: 16411.26129 | T40: 0.9309123914 | U40: 0.0187 | W40: 2014 | Z40: 2014 | AA40: -0.03541990789 | AB40: -0.02818215269 | AC40: -125.887 | AD40: -0.007237755202 | AE40: 67.164 | AF40: 0.003861531297 | AG40: 24717.536 | AH40: 1.42111159 | AI40: 31763.685 | AJ40: 1.82622333 | AK40: 0.03350093019 | AL40: 0.01993375099 | AM40: 821.807 | AN40: 597.802 | AO40: 236.7039167 | AP40: 0.01599087559 | AQ40: 15982.25
B41: 2 | C41: 111 | D41: United States | E41: =+E40+1 -> 2015 | F41: 18036.65 | G41: 2261.163 | H41: 2761.525 | I41: 2015 | S41: 16752.61553 | T41: 2.195877863 | U41: 0.0208 | W41: 2015 | Z41: 2015 | AA41: -0.03577998132 | AB41: -0.02774140431 | AC41: -144.989 | AD41: -0.008038577008 | AE41: 68.164 | AF41: 0.00377919403 | AG41: 23340.771 | AH41: 1.29407462 | AI41: 30621.408 | AJ41: 1.697732561 | AK41: 0.03163667014 | AL41: 0.01888359166 | AM41: 782.916 | AN41: 600.53 | AO41: 236.98725 | AP41: 0.001196278871 | AQ41: 16397.2
B42: 3 | C42: 111 | D42: United States | E42: 2016 | F42: 18569.1 | G42: 2212.08 | H42: 2712.639 | I42: 2016 | S42: 17121.17307 | T42: 1.56286774 | U42: 0.022 | W42: 2016 | Z42: 2016 | AA42: -0.03563958404 | AB42: -0.02695655686 | AC42: -161.236 | AD42: -0.00868302718 | AE42: 69.164 | AF42: 0.003724682402 | AG42: 23916.652 | AH42: 1.287981216 | AI42: 32026.304 | AJ42: 1.724709544 | AK42: 0.03392732257 | AL42: 0.02003694646 | AM42: 801.924 | AN42: 621.334 | AO42: 240.00925 | AP42: 0.01267112205 | AQ42: 16662.1
B43: 4 | C43: 111 | D43: United States | E43: 2017 | F43: 19417.14445 | G43: 2334.197799 | H43: 2923.942945 | I43: 2017 | S43: 17532.08122 | T43: 1.267292748 | U43: 0.024 | W43: 2017 | Z43: 2017 | AA43: -0.03824801593 | AB43: -0.0303723932 | AC43: -152.9221041 | AD43: -0.007875622727 | AE43: 70.164 | AF43: 0.00361350765 | AG43: 27495.84959 | AH43: 1.416060413 | AI43: 36128.27437 | AJ43: 1.860637874 | AK43: 0.03570859752 | AL43: 0.0199757133 | AM43: 876.3995031 | AN43: 656.5050377 | AO43: 246.3788079 | AP43: 0.02619275692 | AQ43: 17046.50491
B44: 5 | C44: 111 | D44: United States | E44: 2018 | F44: 20351.77096 | G44: 2457.583457 | H44: 3134.588635 | I44: 2018 | S44: 17935.31909 | T44: 1.599554823 | U44: 0.023 | W44: 2018 | Z44: 2018 | AA44: -0.04134138803 | AB44: -0.03326517283 | AC44: -164.3652821 | AD44: -0.008076215206 | AE44: 71.164 | AF44: 0.003496698156 | AG44: 30221.16652 | AH44: 1.484940381 | AI44: 39526.09491 | AJ44: 1.942145231 | AK44: 0.03035354766 | AL44: 0.01853428822 | AM44: 854.2348067 | AN44: 685.3679519 | AO44: 252.2448954 | AP44: 0.02353020157 | AQ44: 17475.84914
B45: 6 | C45: 111 | D45: United States | E45: 2019 | F45: 21239.30258 | G45: 2608.460518 | H45: 3360.197164 | I45: 2019 | S45: 18326.30905 | T45: 2.239755501 | U45: 0.0218 | W45: 2019 | Z45: 2019 | AA45: -0.04358029008 | AB45: -0.03539365963 | AC45: -173.8783212 | AD45: -0.008186630449 | AE45: 72.164 | AF45: 0.003397663352 | AG45: 32506.97141 | AH45: 1.530510302 | AI45: 42556.93207 | AJ45: 2.003687829 | AK45: 0.02881450584 | AL45: 0.01757843102 | AM45: 893.4757897 | AN45: 712.8930939 | AO45: 258.8972338 | AP45: 0.02603077968 | AQ45: 17846.48019
B46: 7 | C46: 111 | D46: United States | E46: 2020 | F46: 22063.0443 | G46: 2776.856872 | H46: 3562.166783 | I46: 2020 | S46: 18711.16154 | T46: 2.432931301 | U46: 0.021 | W46: 2020 | Z46: 2020 | AA46: -0.0437552016 | AB46: -0.03559390537 | AC46: -180.0630403 | AD46: -0.008161296232 | AE46: 73.164 | AF46: 0.003316133486 | AG46: 34852.29859 | AH46: 1.579668613 | AI46: 45706.45386 | AJ46: 2.07162952 | AK46: 0.02712894797 | AL46: 0.01702004269 | AM46: 902.1371042 | AN46: 740.9587664 | AO46: 264.913045 | AP46: 0.02297043772 | AQ46: 18172.12748
B47: 8 | C47: 111 | D47: United States | E47: 2021 | F47: 22886.23838 | G47: 2942.325219 | H47: 3725.713253 | I47: 2021 | S47: n.a. | T47: n.a. | U47: n.a. | W47: 2021 | Z47: 2021 | AA47: -0.04232582926 | AB47: -0.03422965454 | AC47: -185.2909847 | AD47: -0.008096174722 | AE47: 74.164 | AF47: 0.00324055001 | AG47: 37026.01722 | AH47: 1.617828872 | AI47: 48647.36806 | AJ47: 2.125616593 | AK47: 0.0272836667 | AL47: 0.01648932669 | AM47: 971.4062918 | AN47: 769.9228352 | AO47: 270.6884134 | AP47: 0.02156675333 | AQ47: 18475.89003
B48: 9 | C48: 111 | D48: United States | E48: 2022 | F48: 23760.3313 | G48: 3116.197685 | H48: 3919.942471 | I48: 2022 | S48: n.a. | T48: n.a. | U48: n.a. | W48: 2022 | Z48: 2022 | AA48: -0.04196951486 | AB48: -0.03382717086 | AC48: -193.4647912 | AD48: -0.008142344008 | AE48: 75.164 | AF48: 0.003163423904 | AG48: 39120.44981 | AH48: 1.64646062 | AI48: 51508.32088 | AJ48: 2.167828396 | AK48: 0.02718723886 | AL48: 0.01605455486 | AM48: 1029.237547 | AN48: 798.5482037 | AO48: 276.8350342 | AP48: 0.02245339096 | AQ48: 18790.59027

Sheet Sheet4 (hidden)
A1: =1 -> 1 | B1: =_xll.RiskCDS1([0]!NewMatrix2,[0]!NewMatrix2,Sheet4!A1+(0*1000000000)) ->  | C1: =_xll.RiskCDS2(Sheet4!B1,1,) ->  | D1: =_xll.RiskCDS2(Sheet4!B1,2,) ->  | E1: =_xll.RiskCDS2(Sheet4!B1,3,) ->  | F1: =_xll.RiskCDS2(Sheet4!B1,4,) ->  | G1: =_xll.RiskCDS2(Sheet4!B1,4,) ->  | H1: =_xll.RiskCDS2(Sheet4!B1,5,) -> 

Sheet RiskSerializationData (hidden)
A1: 5 | B1: 0
A2: 0
A3: =Simulations!$S$7 ->  | B3: TRUE | C3: 0 | D3: 1 | E3: GF1_rK0qDwEADgDlAAwjACYAOQBfAHMAdACCAJAAvwDhANsAKgD//wAAAAAAAQQAAAAABTAuMDAlAAAAASBuZmEgc3MsIHdpdGggdmFsIC8gTkZBIHZhbHVhdGlvbgEAAQEQAAIAAQpTdGF0aXN0aWNzAwEBAP8BAQEBAQABAQEABAAAAAEBAQEBAAEBAQAEAAAAAZQAAicAIG5mYSBzcywgd2l0aCB2YWwgLyBORkEgdmFsdWF0aW9uAAAvAQIAAgDHANEAAQECAZqZmZmZmak/AABmZmZmZmbuPwAABQABAQEAAQEBAA== | F3: 1 | G3: 0 | H3: 0 | J3: >75% | K3: <25% | L3: >90% | AG3: =Simulations!$S$7 ->  | AH3: 1 | AI3: 1 | AJ3: FALSE | AK3: TRUE | AL3: 0 | AM3: FALSE | AN3: =_ -> 
A4: =Simulations!$BV$53 -> 0 | B4: TRUE | C4: 0 | D4: 1 | E4: GF1_rK0qDwEADgCuAAwjACYAOABDAFcAWABmAHQAiACqAKQAKgD//wAAAAAAAQQAAAAABDAuMCUAAAABBVNTIE5YAQABARAAAgABClN0YXRpc3RpY3MDAQEA/wEBAQEBAAEBAQAEAAAAAQEBAQEAAQEBAAQAAAABeAACDAAFU1MgTlgAAC8BAgACAJAAmgABAQIBmpmZmZmZqT8AAGZmZmZmZu4/AAAFAAEBAQABAQEA | F4: 1 | G4: 0 | H4: 0 | J4: >75% | K4: <25% | L4: >90% | AG4: =Simulations!$BV$53 -> 0 | AH4: 12 | AI4: 1 | AJ4: FALSE | AK4: TRUE | AL4: 0 | AM4: FALSE | AN4: =_ -> 
A5: =Simulations!$BV$54 -> 0 | B5: TRUE | C5: 0 | D5: 1 | E5: GF1_rK0qDwEADgCpAAwjACYAOQBBAFUAVgBkAHIAgwClAJ8AKgD//wAAAAAAAQQAAAAABTAuMDAlAAAAAQJyMQEAAQEQAAIAAQpTdGF0aXN0aWNzAwEBAP8BAQEBAQABAQEABAAAAAEBAQEBAAEBAQAEAAAAAXYAAgkAAnIxAAAvAQIAAgCLAJUAAQECAZqZmZmZmak/AABmZmZmZmbuPwAABQABAQEAAQEBAA== | F5: 1 | G5: 0 | H5: 0 | J5: >75% | K5: <25% | L5: >90% | AG5: =Simulations!$BV$54 -> 0 | AH5: 13 | AI5: 1 | AJ5: FALSE | AK5: TRUE | AL5: 0 | AM5: FALSE | AN5: =_ -> 
A6: =Simulations!$AV$31 ->  | B6: FALSE | C6: 1 | D6: 1 | E6: GF1_rK0qDwEADgD4AAwjACYAOABqAH4AfwCNAJsA0gD0AO4AKgD//wAAAAAAAQQAAAAABDAuMDAAAAABDW4uYS4gLyBhc3NldHMBH0NvbXBhcmlzb24gd2l0aCBOb3JtYWwoMCwwLjAzNSkBARAAAgABClN0YXRpc3RpY3MDAQEA/wEBAQEBAAEBAQAEAAAAAQEBAQEAAQEBAAQAAAACogACugAAFAANbi5hLiAvIGFzc2V0cwAALwECAAIAFgAPTm9ybWFsKDAsMC4wMzUpAQElAQIA2gDkAAEBAgGamZmZmZmpPwAAZmZmZmZm7j8AAAUAAQEBAAEBAQA= | F6: 2 | G6: 0 | H6: 0 | AG6: =Simulations!$AV$31 ->  | AH6: 10 | AI6: 1 | AJ6: FALSE | AK6: FALSE | AL6: 1 | AM6: FALSE | AN6: =_ ->  | AO6: =Simulations!$AV$31 ->  | AP6: 10 | AQ6: 1 | AR6: TRUE | AS6: FALSE | AT6: 1 | AU6: TRUE | AV6: =_RiskNormal(0,0.035,_xll.RiskCorrmat(NewMatrix4,5)) -> 
A7: =Simulations!$AR$35 ->  | B7: FALSE | C7: 1 | D7: 1 | E7: GF1_rK0qDwEADgD8AAwjACYAOABsAIAAgQCPAJ0A1gD4APIAKgD//wAAAAAAAQQAAAAABDAuMDAAAAABD24uYS4gLyBueCBzaG9jawEfQ29tcGFyaXNvbiB3aXRoIE5vcm1hbCgwLDAuMDAzKQEBEAACAAEKU3RhdGlzdGljcwMBAQD/AQEBAQEAAQEBAAQAAAABAQEBAQABAQEABAAAAAKkAAK+AAAWAA9uLmEuIC8gbnggc2hvY2sAAC8BAgACABYAD05vcm1hbCgwLDAuMDAzKQEBJQECAN4A6AABAQIBmpmZmZmZqT8AAGZmZmZmZu4/AAAFAAEBAQABAQEA | F7: 2 | G7: 0 | H7: 0 | AG7: =Simulations!$AR$35 ->  | AH7: 26 | AI7: 1 | AJ7: FALSE | AK7: FALSE | AL7: 1 | AM7: FALSE | AN7: =_ ->  | AO7: =Simulations!$AR$35 ->  | AP7: 26 | AQ7: 1 | AR7: TRUE | AS7: FALSE | AT7: 1 | AU7: TRUE | AV7: =_RiskNormal(0,0.003,_xll.RiskCorrmat(NewMatrix4,1)) -> 
A8: 0
A9: FALSE | B9: 13440 | C9: 6215 | D9: 7050 | E9: 100
A10: FALSE | B10: 13440 | C10: 6215 | D10: 7050 | E10: 500
A11: FALSE | B11: 13440 | C11: 6215 | D11: 7050 | E11: 1000
A12: FALSE | B12: 13440 | C12: 6215 | D12: 7050 | E12: 1500
A13: FALSE | B13: 13440 | C13: 6215 | D13: 7050 | E13: 2000
A14: 0
A15: 0 | B15: FALSE | C15: FALSE | D15: 10 | E15: 0.95 | F15: 1

Sheet Simulations
L1: 0.2 | M1: 0.1 | S1: NFA valuation | T1: No NFA Valuation | AA1: Elasticity of NX to REER
C2: country= | D2: =Data!D2 -> United States | J2: NX Shock | K2: Beta shock | L2: k outf shock | M2: e_x = | N2: =Data!#REF! ->  | O2: k inf shock | P2: ∆%(REER)= | S2: -0.09988295632 | T2: 0 | Z2: Period 1 | AA2: =-0.15 -> -0.15
C3: ifs_code= | D3: =Data!D3 -> 111 | M3: e_m = | N3: =Data!#REF! ->  | P3: REER_0= | S3: 100 | T3: 100 | Z3: Period 2 | AA3: =AA2 -> -0.15 | AK3: ACCORDING TO MITALI'S DERIVATION, WE DO NOT NEED THE "R" DENOMINATOR ANYMORE (SEE COLUMN AR AND AS) | AW3: Fx composition of the stocks of A and L:
C4: Year= | D4: =Data!D4 -> 2013 | P4: REER_1= | S4: =S3*(1+S2) -> 90.01170437 | T4: =T3*(1+T2) -> 100 | Z4: Period 3 | AA4: =AA3 -> -0.15 | AX4: A/GDP | AY4: L/GDP
M5: tb ss, with val | N5: =BN54 ->  | Z5: Period 4 | AA5: =AA4 -> -0.15 | AW5: 2016 | AX5: =Data!AH42 -> 1.287981216 | AY5: =Data!AJ42 -> 1.724709544
M6: tb ss, w/o val | N6: =BO54 ->  | P6: nfa= | Z6: Period 5 | AA6: =AA5 -> -0.15 | AW6: A, FC | AX6: 0.68 | BK6: 1*(B45<=$G$3)
M7: nfa ss, with val | N7: =(-((AP52)/(1-AP52))*N5) ->  | Q7: ER Solution: | S7: =_xll.RiskOutput()+S2 ->  | T7: =_xll.RiskOutput()+T2 ->  | Z7: Period 6 | AA7: -0.15 | AK7: =AVERAGE(AK12:AK43) -> 0.1094400223 | AL7: =AVERAGE(AL12:AL43) -> 0.07766269577 | AN7: =CORREL(AK12:AK43,AN12:AN43) ->  | AO7: =CORREL(AL12:AL43,AN12:AN43) ->  | AW7: L, FC | AX7: 0.16 | BK7: ($D$7-(($D$7-$D$8)/$G$3)*B45)*BK46
M8: r/1-r | N8: =D8/(1-D8) -> 0 | AA8: =SUM(AA2:AA7) -> -0.9 | AK8: =AVERAGE(AK12:AK43) -> 0.1094400223 | AL8: =AVERAGE(AL12:AL43) -> 0.07766269577
M9: nfa ss, w/o val | N9: =(-((AP52)/(1-AP52))*N6) ->  | AK9: =STDEV(AK12:AK43) -> 0.08465620593 | AL9: =STDEV(AL12:AL43) -> 0.06485078738 | AN9: =STDEV(AN12:AN42) ->  | AW9: NFA/GDP (Local Currency, Assets) | AX9: NFA/GDP (Foreign Currency, Assets) | AY9: NFA/GDP (Local Currency, Liab.) | AZ9: NFA/GDP (Foreign Currency, Liab.) | BA9: Sum: NFA/GDP | BC9: NETFX
B10: t | C10: ifs_code | D10: Country | E10: Year | F10: Y (Nominal Billions USD) | G10: X (Nominal Billions USD) | H10: Q (Nominal Billions USD) | I10: NFA (Nominal MM USD) | J10: A (Nominal MM USD) | K10: L (Nominal MM USD) | L10: Exchange Rate (End of Period) [LCU/USD] | M10: Exchange Rate (Period Average) [LCU/USD] | N10: GDP Deflator (LCU) | O10: X Deflator (USD) | P10: M Deflator (USD) | AB10: Nominal A [USD] | AC10: Nominal L [USD] | AD10: x | AE10: ∆%x | AF10: q | AG10: ∆%q | AH10: q* | AI10: ∆%q* | AK10: r_FA (Nominal, USD) | AL10: r_FL (Nominal, USD) | AM10: RL = (1+r_L) | AN10: g | AO10: G=(1+g) | AP10: G/R_L | BE10: nfa GM | BF10: Potential Output (Constant Prices, LCU, Billions) | BG10: Long Term Bond Yield | BH10: Growth Rate Potential Output | BI10: Trade Balance (% of GDP) | BJ10: path of delta | BK10: counter | BL10: delta * rho | BM10: path of alpha
AT11: AR1 | AU11: I if SC | AV11: variable
B12: =B13-1 -> -31 | C12: =$D$3 -> 111 | D12: =$D$2 -> United States | E12: =+E13-1 -> 1982 | V12: =IFERROR(F12,"n.a.") -> 0 | W12: =IFERROR(G12/T12*100,"n.a.") -> n.a. | X12: =IFERROR(W12/#REF!-1,"n.a.") -> n.a. | Y12: =IFERROR(H12/U12*100,"n.a.") -> n.a. | AB12: =IFERROR(J12,"n.a.") -> 0 | AC12: =IFERROR(K12,"n.a.") -> 0 | AD12: =+W12/V12 ->  | AF12: =+Y12/V12 ->  | AG12: =+AF12/#REF!-1 ->  | AH12: =+AF12*(1-BM12*($D$7)) ->  | AK12: 0.1813713029 | AL12: 0.2267673393 | AM12: =1+AL12 -> 1.226767339 | AT12: 0.73 | AU12: 1 | AV12: nx | BE12: =AJ12 -> 0 | BF12: 6918.123496 | BG12: 6.842475562 | BH12: =IFERROR(BF12/#REF!-1,"n.a.") -> n.a. | BI12: =AD12-AF12 ->  | BM12: 0
B13: -30 | C13: 111 | D13: United States | E13: 1983 | V13: 0 | W13: n.a. | X13: =IFERROR(W13/W12-1,"n.a.") -> n.a. | Y13: n.a. | AB13: 0 | AC13: 0 | AE13: =+AD13/AD12-1 ->  | AG13: =+AF13/AF12-1 ->  | AI13: =+AH13/AH12-1 ->  | AK13: 0.1926994488 | AL13: 0.1490266114 | AM13: 1.149026611 | AN13: =+V13/V12-1 ->  | AO13: =1+AN13 ->  | AP13: =AO13/AM13 ->  | AT13: 0.29 | AU13: 1 | AV13: rg | BE13: 0 | BF13: 7129.32874 | BG13: 7.945469613 | BH13: =IFERROR(BF13/BF12-1,"n.a.") -> 0.03052926767 | BM13: =BM12 -> 0
B14: -29 | C14: 111 | D14: United States | E14: 1984 | V14: 0 | W14: n.a. | X14: n.a. | Y14: n.a. | AB14: 0 | AC14: 0 | AK14: 0.0629160446 | AL14: 0.09149230012 | AM14: 1.0914923 | AT14: 0.66 | AU14: 1 | AV14: ryol | BE14: 0 | BF14: 7358.205802 | BG14: 8.070132497 | BH14: 0.03210359208 | BM14: 0
B15: -28 | C15: 111 | D15: United States | E15: 1985 | AB15: 0 | AC15: 0 | AK15: 0.1999579483 | AL15: 0.142850979 | AM15: 1.142850979 | AT15: 0.67 | AU15: 1 | AV15: ryoa | BE15: 0 | BF15: 7615.39622 | BG15: 7.095430832 | BH15: 0.03495287093 | BM15: 0
B16: -27 | C16: 111 | D16: United States | E16: 1986 | AB16: 0 | AC16: 0 | AK16: 0.1986751774 | AL16: 0.1069819362 | AM16: 1.106981936 | AR16: nx | AS16: =RiskNormal(0,0.005,RiskCorrmat(NewMatrix4,1)) ->  | AT16: 0.7 | AU16: 1 | AV16: agdp | BE16: 0 | BF16: 7893.429284 | BG16: 5.738571871 | BH16: 0.0365093366 | BM16: 0
B17: -26 | C17: 111 | D17: United States | E17: 1987 | AB17: 0 | AC17: 0 | AK17: 0.1152755247 | AL17: 0.03808170538 | AM17: 1.038081705 | AR17: rg | AS17: =RiskNormal(0,0.014,RiskCorrmat(NewMatrix4,2)) ->  | AW17: Data from Benetrix Lane and Shambaugh | BE17: 0 | BF17: 8158.369541 | BG17: 4.805955013 | BH17: 0.03356465835 | BM17: 0
B18: -25 | C18: 111 | D18: United States | E18: 1988 | AB18: 0 | AC18: 0 | AK18: 0.1505776659 | AL18: 0.08876831841 | AM18: 1.088768318 | AR18: ryol | AS18: =RiskNormal(0,0.006,RiskCorrmat(NewMatrix4,3)) ->  | BE18: 0 | BF18: 8416.736722 | BG18: 4.745789326 | BH18: 0.0316689726 | BM18: 0
B19: -24 | C19: 111 | D19: United States | E19: 1989 | AB19: 0 | AC19: 0 | AK19: 0.1554393207 | AL19: 0.1506520854 | AM19: 1.150652085 | AR19: ryoa | AS19: =RiskNormal(0,0.006,RiskCorrmat(NewMatrix4,4)) ->  | BE19: 0 | BF19: 8672.57227 | BG19: 3.708072465 | BH19: 0.03039604963 | BM19: 0
B20: -23 | C20: 111 | D20: United States | E20: 1990 | AB20: 0 | AC20: 0 | AK20: 0.01405822757 | AL20: 0.0247361545 | AM20: 1.024736154 | AR20: agdp | AS20: =RiskNormal(0,0.064,RiskCorrmat(NewMatrix4,5)) ->  | AW20: 0.1727778 | AX20: 0.2048984 | AY20: 0.3675245 | AZ20: 0.05614417 | BA20: =AW20+AX20-(AY20+AZ20) -> -0.04599247 | BC20: 0.148754 | BE20: 0 | BF20: 8957.009054 | BG20: 3.130783971 | BH20: 0.03279728039 | BM20: 0
B21: -22 | C21: 111 | D21: United States | E21: 1991 | AB21: 0 | AC21: 0 | AK21: 0.1085258174 | AL21: 0.1112207963 | AM21: 1.111220796 | AW21: 0.165739 | AX21: 0.2308751 | AY21: 0.3956025 | AZ21: 0.05994879 | BA21: -0.05893719 | BC21: 0.170926 | BE21: 0 | BF21: 9210.963859 | BG21: 3.642503242 | BH21: 0.02835263461 | BM21: 0
B22: -21 | C22: 111 | D22: United States | E22: 1992 | Q22: nx | R22: g | S22: rL | T22: rA | U22: a | AB22: 0 | AC22: 0 | AK22: 0.02019918202 | AL22: 0.04222425672 | AM22: 1.042224257 | AS22: Defining the correlation matrix of innovations | AW22: 0.1576105 | AX22: 0.2178052 | AY22: 0.4005241 | AZ22: 0.06001808 | BA22: -0.08512648 | BC22: 0.157787 | BE22: 0 | BF22: 9468.914354 | BG22: 3.968384333 | BH22: 0.02800472343 | BM22: 0
B23: =B24-1 -> -20 | C23: =$D$3 -> 111 | D23: =$D$2 -> United States | E23: =+E24-1 -> 1993 | Q23: 0.005 | AB23: 0 | AC23: 0 | AK23: 0.2138180264 | AL23: 0.04603497366 | AM23: 1.046034974 | AW23: 0.1598096 | AX23: 0.2891406 | AY23: 0.4210699 | AZ23: 0.06496212 | BA23: =AW23+AX23-(AY23+AZ23) -> -0.03708182 | BC23: 0.224179 | BE23: =AJ23 -> 0 | BF23: 9714.159236 | BG23: 2.903683158 | BH23: 0.0259 | BM23: 0
B24: -19 | C24: =$D$3 -> 111 | D24: =$D$2 -> United States | E24: 1994 | Q24: -0.44 | R24: 0.014 | AB24: 0 | AC24: 0 | AK24: 0.05433696691 | AL24: 0.005622450012 | AM24: 1.00562245 | AN24: =+V24/V23-1 ->  | AO24: =1+AN24 ->  | AP24: =AO24/AM24 ->  | AQ24: @RISK Correlations | AR24: ="n.a. / nx shock in "&CELL("address",$AR$36) -> n.a. / nx shock in $AR$36 | AS24: ="n.a. / g shock in "&CELL("address",$AS$36) -> n.a. / g shock in $AS$36 | AT24: ="n.a. / yol shock in "&CELL("address",$AT$36) -> n.a. / yol shock in $AT$36 | AU24: ="n.a. / yoa shock in "&CELL("address",$AU$36) -> n.a. / yoa shock in $AU$36 | AV24: ="assets / RHS in "&CELL("address",$AS$22) -> assets / RHS in $AS$22 | AW24: 0.1629616 | AX24: 0.2916378 | AY24: 0.4152612 | AZ24: 0.07261724 | BA24: -0.03327904 | BC24: 0.219021 | BE24: 0 | BF24: 9979.355783 | BG24: 4.484395224 | BH24: 0.0273 | BM24: 0
B25: -18 | C25: 111 | D25: United States | E25: 1995 | Q25: -0.13 | R25: 0.13 | S25: 0.006 | AB25: 0 | AC25: 0 | AK25: 0.1468101666 | AL25: 0.1590146006 | AM25: 1.159014601 | AO25: =1+AN25 ->  | AP25: =AO25/AM25 ->  | AQ25: ="n.a. / nx shock in "&CELL("address",$AR$36) -> n.a. / nx shock in $AR$36 | AR25: 1 | AW25: 0.1742066 | AX25: 0.348024 | AY25: 0.4903389 | AZ25: 0.08692428 | BA25: -0.05503258 | BC25: 0.2611 | BE25: 0 | BF25: 10267.75917 | BG25: 3.774580311 | BH25: 0.0289 | BM25: 0
B26: -17 | C26: 111 | D26: United States | E26: 1996 | Q26: -0.15 | R26: -0.04 | S26: 0.88 | T26: 0.006 | AB26: 0 | AC26: 0 | AK26: 0.1213449713 | AL26: 0.08843221542 | AM26: 1.088432215 | AQ26: ="n.a. / g shock in "&CELL("address",$AS$36) -> n.a. / g shock in $AS$36 | AR26: =Q24 -> -0.44 | AS26: 1 | AW26: 0.1933275 | AX26: 0.3892794 | AY26: 0.5590253 | AZ26: 0.08201035 | BA26: -0.05842875 | BC26: 0.307269 | BE26: 0 | BF26: 10594.27391 | BG26: 3.501660469 | BH26: 0.0318 | BM26: 1
B27: -16 | C27: 111 | D27: United States | E27: 1997 | Q27: -0.18 | R27: 0.19 | S27: 0.24 | T27: 0.29 | U27: 0.064 | AB27: 0 | AC27: 0 | AK27: 0.1037625468 | AL27: 0.1408508495 | AM27: 1.14085085 | AQ27: ="n.a. / yol shock in "&CELL("address",$AT$36) -> n.a. / yol shock in $AT$36 | AR27: =Q25 -> -0.13 | AS27: =R25 -> 0.13 | AT27: 1 | AW27: 0.2088172 | AX27: 0.4297897 | AY27: 0.6721349 | AZ27: 0.07468798 | BA27: -0.10821598 | BC27: 0.355102 | BE27: 0 | BF27: 10943.88495 | BG27: 4.014934256 | BH27: 0.033 | BM27: 1
B28: -15 | C28: 111 | D28: United States | E28: 1998 | AB28: 0 | AC28: 0 | AD28: =+W28/V28 ->  | AK28: 0.1274451738 | AL28: 0.1383945072 | AM28: 1.138394507 | AQ28: ="n.a. / yoa shock in "&CELL("address",$AU$36) -> n.a. / yoa shock in $AU$36 | AR28: =Q26 -> -0.15 | AS28: =R26 -> -0.04 | AT28: =S26 -> 0.88 | AU28: 1 | AW28: 0.210137 | AX28: 0.4876854 | AY28: 0.7616165 | AZ28: 0.06722937 | BA28: -0.13102347 | BC28: 0.420456 | BE28: 0 | BF28: 11330.20408 | BG28: 3.717159451 | BH28: 0.0353 | BM28: 1
B29: -14 | C29: 111 | D29: United States | E29: 1999 | AB29: 0 | AC29: 0 | AE29: =+AD29/AD28-1 ->  | AF29: =+Y29/V29 ->  | AH29: =+AF29*(1-BM29*($D$7)) ->  | AK29: 0.158822543 | AL29: 0.097633401 | AM29: 1.097633401 | AQ29: ="assets / RHS in "&CELL("address",$AS$22) -> assets / RHS in $AS$22 | AR29: =Q27 -> -0.18 | AS29: =R27 -> 0.19 | AT29: =S27 -> 0.24 | AU29: =T27 -> 0.29 | AV29: 1 | AW29: 0.2148117 | AX29: 0.5753722 | AY29: 0.8572143 | AZ29: 0.05309301 | BA29: -0.12012341 | BC29: 0.522279 | BE29: 0 | BF29: 11734.69237 | BG29: 3.443527257 | BH29: 0.0357 | BI29: =AD29-AF29 ->  | BM29: 1
B30: -13 | C30: 111 | D30: United States | E30: 2000 | AB30: 0 | AC30: 0 | AD30: =+W30/V30 ->  | AE30: =+AD30/AD29-1 ->  | AF30: =+Y30/V30 ->  | AH30: =+AF30*(1-BM30*($D$7)) ->  | AK30: -0.0268832457 | AL30: -0.02013812795 | AM30: 0.979861872 | AR30: nx shock | AS30: g shock | AT30: yol shock | AU30: yoa shock | AV30: agdp | AW30: 0.2373044 | AX30: 0.5092995 | AY30: 0.8663382 | AZ30: 0.04862792 | BA30: -0.16836222 | BC30: 0.460672 | BE30: 0 | BF30: 12148.92701 | BG30: 2.662483325 | BH30: 0.0353 | BI30: =AD30-AF30 ->  | BM30: 1
B31: -12 | C31: 111 | D31: United States | E31: 2001 | AB31: 0 | AC31: 0 | AK31: -0.07395222591 | AL31: -0.02659108808 | AM31: 0.9734089119 | AQ31: Period 1 | AR31: =RiskNormal(0,0.005,RiskCorrmat(NewMatrix4,1)) ->  | AS31: =RiskNormal(0,0.014,RiskCorrmat(NewMatrix4,2)) ->  | AT31: =RiskNormal(0,0.006,RiskCorrmat(NewMatrix4,3)) ->  | AU31: =RiskNormal(0,0.006,RiskCorrmat(NewMatrix4,4)) ->  | AV31: =RiskNormal(0,0.064,RiskCorrmat(NewMatrix4,5)) ->  | AW31: 0.2428708 | AX31: 0.4361546 | AY31: 0.8685518 | AZ31: 0.04926327 | BA31: -0.23878967 | BC31: 0.386891 | BE31: 0 | BF31: 12557.13096 | BG31: 2.200871243 | BH31: 0.0336 | BM31: 1
B32: -11 | C32: 111 | D32: United States | E32: 2002 | V32: 0 | W32: n.a. | X32: n.a. | Y32: n.a. | AB32: 0 | AC32: 0 | AK32: -0.01975628623 | AL32: -0.05908237003 | AM32: 0.94091763 | AQ32: Period 2 | AR32: =(RiskNormal(0,0.005,RiskCorrmat(NewMatrix4,1))*(1-$AU$12))+($AU$12*(RiskNormal(0,0.005,RiskCorrmat(NewMatrix4,1)) + $AT$12*AR31)) ->  | AS32: =(RiskNormal(0,0.014,RiskCorrmat(NewMatrix4,2))*(1-$AU$13))+($AU$13*(RiskNormal(0,0.014,RiskCorrmat(NewMatrix4,2)) + $AT$13*AS31)) ->  | AT32: =RiskNormal(0,0.006,RiskCorrmat(NewMatrix4,3))*(1-$AU$14)+($AU$14*(RiskNormal(0,0.006,RiskCorrmat(NewMatrix4,3)) + $AT$14*AT31)) ->  | AU32: =RiskNormal(0,0.006,RiskCorrmat(NewMatrix4,4))*(1-$AU$15)+($AU$15*(RiskNormal(0,0.006,RiskCorrmat(NewMatrix4,4)) + $AT$15*AU31)) ->  | AV32: =RiskNormal(0,0.064,RiskCorrmat(NewMatrix4,5))*(1-$AU$16)+($AU$16*(RiskNormal(0,0.064,RiskCorrmat(NewMatrix4,5)) + $AT$16*AV31)) ->  | AW32: 0.2735925 | AX32: 0.3661364 | AY32: 0.8279531 | AZ32: 0.05415367 | BA32: -0.24237787 | BC32: 0.311983 | BE32: 0 | BF32: 12917.52062 | BG32: 3.015163764 | BH32: 0.0287 | BM32: 1
B33: -10 | C33: 111 | D33: United States | E33: 2003 | V33: 0 | W33: n.a. | X33: n.a. | Y33: n.a. | AB33: 0 | AC33: 0 | AK33: 0.2129843931 | AL33: 0.08473329453 | AM33: 1.084733295 | AQ33: Period 3 | AR33: =(RiskNormal(0,0.005,RiskCorrmat(NewMatrix4,1))*(1-$AU$12))+($AU$12*(RiskNormal(0,0.005,RiskCorrmat(NewMatrix4,1)) + $AT$12*AR32)) ->  | AS33: =(RiskNormal(0,0.014,RiskCorrmat(NewMatrix4,2))*(1-$AU$13))+($AU$13*(RiskNormal(0,0.014,RiskCorrmat(NewMatrix4,2)) + $AT$13*AS32)) ->  | AT33: =RiskNormal(0,0.006,RiskCorrmat(NewMatrix4,3))*(1-$AU$14)+($AU$14*(RiskNormal(0,0.006,RiskCorrmat(NewMatrix4,3)) + $AT$14*AT32)) ->  | AU33: =RiskNormal(0,0.006,RiskCorrmat(NewMatrix4,4))*(1-$AU$15)+($AU$15*(RiskNormal(0,0.006,RiskCorrmat(NewMatrix4,4)) + $AT$15*AU32)) ->  | AV33: =RiskNormal(0,0.064,RiskCorrmat(NewMatrix4,5))*(1-$AU$16)+($AU$16*(RiskNormal(0,0.064,RiskCorrmat(NewMatrix4,5)) + $AT$16*AV32)) ->  | AW33: 0.2666063 | AX33: 0.4797094 | AY33: 0.910145 | AZ33: 0.05875904 | BA33: -0.22258834 | BC33: 0.42095 | BE33: 0 | BF33: 13257.25141 | BG33: 1.717001483 | BH33: 0.0263 | BM33: 1
B34: -9 | C34: 111 | D34: United States | E34: 2004 | V34: 0 | W34: n.a. | X34: n.a. | Y34: n.a. | AB34: 0 | AC34: 0 | AK34: 0.1532481969 | AL34: 0.07200158628 | AM34: 1.072001586 | AQ34: Period 4 | AR34: =(RiskNormal(0,0.005,RiskCorrmat(NewMatrix4,1))*(1-$AU$12))+($AU$12*(RiskNormal(0,0.005,RiskCorrmat(NewMatrix4,1)) + $AT$12*AR33)) ->  | AS34: =(RiskNormal(0,0.014,RiskCorrmat(NewMatrix4,2))*(1-$AU$13))+($AU$13*(RiskNormal(0,0.014,RiskCorrmat(NewMatrix4,2)) + $AT$13*AS33)) ->  | AT34: =RiskNormal(0,0.006,RiskCorrmat(NewMatrix4,3))*(1-$AU$14)+($AU$14*(RiskNormal(0,0.006,RiskCorrmat(NewMatrix4,3)) + $AT$14*AT33)) ->  | AU34: =RiskNormal(0,0.006,RiskCorrmat(NewMatrix4,4))*(1-$AU$15)+($AU$15*(RiskNormal(0,0.006,RiskCorrmat(NewMatrix4,4)) + $AT$15*AU33)) ->  | AV34: =RiskNormal(0,0.064,RiskCorrmat(NewMatrix4,5))*(1-$AU$16)+($AU$16*(RiskNormal(0,0.064,RiskCorrmat(NewMatrix4,5)) + $AT$16*AV33)) ->  | AW34: 0.3059572 | AX34: 0.5454646 | AY34: 0.9934605 | AZ34: 0.07697377 | BA34: -0.21901247 | BC34: 0.468491 | BE34: 0 | BF34: 13586.03124 | BG34: 1.606594203 | BH34: 0.0248 | BM34: 1
B35: -8 | C35: 111 | D35: United States | E35: 2005 | V35: 0 | W35: n.a. | X35: n.a. | Y35: n.a. | AB35: 0 | AC35: 0 | AK35: 0.2582741842 | AL35: 0.1119388136 | AM35: 1.111938814 | AQ35: Period 5 | AR35: =(RiskNormal(0,0.005,RiskCorrmat(NewMatrix4,1))*(1-$AU$12))+($AU$12*(RiskNormal(0,0.005,RiskCorrmat(NewMatrix4,1)) + $AT$12*AR34)) ->  | AS35: =(RiskNormal(0,0.014,RiskCorrmat(NewMatrix4,2))*(1-$AU$13))+($AU$13*(RiskNormal(0,0.014,RiskCorrmat(NewMatrix4,2)) + $AT$13*AS34)) ->  | AT35: =RiskNormal(0,0.006,RiskCorrmat(NewMatrix4,3))*(1-$AU$14)+($AU$14*(RiskNormal(0,0.006,RiskCorrmat(NewMatrix4,3)) + $AT$14*AT34)) ->  | AU35: =RiskNormal(0,0.006,RiskCorrmat(NewMatrix4,4))*(1-$AU$15)+($AU$15*(RiskNormal(0,0.006,RiskCorrmat(NewMatrix4,4)) + $AT$15*AU34)) ->  | AV35: =RiskNormal(0,0.064,RiskCorrmat(NewMatrix4,5))*(1-$AU$16)+($AU$16*(RiskNormal(0,0.064,RiskCorrmat(NewMatrix4,5)) + $AT$16*AV34)) ->  | BE35: 0 | BF35: 13912.09599 | BG35: 0.9241700119 | BH35: 0.024 | BM35: 1
B36: -7 | C36: 111 | D36: United States | E36: 2006 | V36: 0 | W36: n.a. | X36: n.a. | Y36: n.a. | AB36: 0 | AC36: 0 | AK36: 0.1799824741 | AL36: 0.09993444087 | AM36: 1.099934441 | AQ36: Period 6 | AR36: =(RiskNormal(0,0.005,RiskCorrmat(NewMatrix4,1))*(1-$AU$12))+($AU$12*(RiskNormal(0,0.005,RiskCorrmat(NewMatrix4,1)) + $AT$12*AR35)) ->  | AS36: =(RiskNormal(0,0.014,RiskCorrmat(NewMatrix4,2))*(1-$AU$13))+($AU$13*(RiskNormal(0,0.014,RiskCorrmat(NewMatrix4,2)) + $AT$13*AS35)) ->  | AT36: =RiskNormal(0,0.006,RiskCorrmat(NewMatrix4,3))*(1-$AU$14)+($AU$14*(RiskNormal(0,0.006,RiskCorrmat(NewMatrix4,3)) + $AT$14*AT35)) ->  | AU36: =RiskNormal(0,0.006,RiskCorrmat(NewMatrix4,4))*(1-$AU$15)+($AU$15*(RiskNormal(0,0.006,RiskCorrmat(NewMatrix4,4)) + $AT$15*AU35)) ->  | AV36: =RiskNormal(0,0.064,RiskCorrmat(NewMatrix4,5))*(1-$AU$16)+($AU$16*(RiskNormal(0,0.064,RiskCorrmat(NewMatrix4,5)) + $AT$16*AV35)) ->  | BE36: 0 | BF36: 14240.42146 | BG36: 1.569577216 | BH36: 0.0236 | BM36: 1
B37: -6 | C37: 111 | D37: United States | E37: 2007 | V37: 0 | W37: n.a. | X37: n.a. | Y37: n.a. | AB37: 0 | AC37: 0 | AK37: 0.2170003624 | AL37: 0.1267863477 | AM37: 1.126786348 | BF37: 14563.67903 | BG37: 1.758616371 | BH37: 0.0227 | BM37: 1
B38: -5 | C38: 111 | D38: United States | E38: 2008 | V38: 0 | W38: n.a. | X38: n.a. | Y38: n.a. | AB38: 0 | AC38: 0 | AK38: -0.007402347869 | AL38: 0.07465290117 | AM38: 1.074652901 | BF38: 14892.81817 | BG38: -0.1482867321 | BH38: 0.0226 | BM38: 1
B39: -4 | C39: 111 | D39: United States | E39: 2009 | V39: 0 | W39: n.a. | X39: n.a. | Y39: n.a. | AB39: 0 | AC39: 0 | AK39: 0.02468937521 | AL39: -0.05151925789 | AM39: 0.9484807421 | AQ39: Debt less disc val | AR39: =_xll.RiskOutput()+(1-(PRODUCT(AX54:AX59)))*AJ45 ->  | BF39: 15187.69597 | BG39: 3.577024259 | BH39: 0.0198 | BM39: 1
B40: -3 | C40: 111 | D40: United States | E40: 2010 | V40: 0 | W40: n.a. | X40: n.a. | Y40: n.a. | AB40: 0 | AC40: 0 | AK40: 0.1058820532 | AL40: 0.06041847421 | AM40: 1.060418474 | BF40: 15379.06094 | BG40: 1.577597117 | BH40: 0.0126 | BM40: 1
B41: -2 | C41: 111 | D41: United States | E41: 2011 | V41: 0 | W41: n.a. | X41: n.a. | Y41: n.a. | AB41: 0 | AC41: 0 | AK41: 0.03207787635 | AL41: 0.07956423036 | AM41: 1.07956423 | AQ41: Debt less disc val after revaluation | AR41: =(AR39)+($S$2*BB43) ->  | BF41: 15582.06455 | BG41: -0.35687598 | BH41: 0.0132 | BM41: 1
B42: =B43-1 -> -1 | C42: 111 | D42: United States | E42: =+E43-1 -> 2012 | V42: 0 | W42: n.a. | X42: n.a. | Y42: n.a. | AB42: 0 | AC42: 0 | AK42: 0.04272262412 | AL42: 0.012848359 | AM42: 1.012848359 | BF42: 15828.26117 | BG42: -0.2738527562 | BH42: 0.0158 | BM42: 1
B43: 0 | C43: 111 | D43: United States | E43: =$D$4 -> 2013 | V43: 0 | W43: n.a. | X43: n.a. | Y43: n.a. | AB43: 0 | AC43: 0 | AK43: 0.07717722545 | AL43: 0.07087318033 | AM43: 1.07087318 | AW43: Elasticity of Net Debt to ER: | BB43: =AX45-AZ45 -> 0.5998736999 | BC43: =+BC34 -> 0.468491 | BD43: =+BA43+BC43*(-S2) -> 0.04679426609 | BF43: 16110.00421 | BG43: 0.8866565041 | BH43: 0.0178 | BM43: 1
B44: 1 | C44: 111 | D44: United States | E44: =+E43+1 -> 2014 | V44: 0 | W44: =+W43*(1+X44) ->  | Y44: n.a. | AB44: =IFERROR(J44,"n.a.") -> 0 | AC44: =IFERROR(K44,"n.a.") -> 0 | AL44: =BG44/100 -> 0.009309123914 | AM44: 1.009309124 | AP44: =$D$8 -> 0 | AS44: Reval: | AT44: =T53-AR41 ->  | AU44: =$T$4 -> 100 | BC44: =BC43 -> 0.468491 | BD44: =+BA44+BC44*(-S2) -> 0.04679426609 | BF44: 16411.26129 | BG44: 0.9309123914 | BH44: 0.0187 | BJ44: =$D$7 -> 0 | BK44: =1*(B44<=$G$3) -> 0 | BM44: 1 | BN44: adj. trade balance (using revalued S2 Ex Rate) | BP44: assets/gdp | BQ44: returns on assets | BR44: returns on liabilities
B45: 2 | C45: 111 | D45: United States | E45: =+E44+1 -> 2015 | V45: 0 | Y45: =IFERROR(H45/#REF!*100,"n.a.") -> n.a. | AA45: Net Debt level in 2016: | AJ45: =AY5-AX5 -> 0.4367283282 | AL45: =BG45/100 -> 0.02195877863 | AM45: 1.021958779 | AP45: =$D$8+K3 -> 0 | AQ45: Discount ratio | AU45: =$S$4 -> 90.01170437 | AV45: FC Shares: | AW45: =(1-AX6)*AX5 -> 0.4121539892 | AX45: =AX6*AX5 -> 0.875827227 | AY45: =(1-AX7)*AY5 -> 1.448756017 | AZ45: =AX7*AY5 -> 0.2759535271 | BA45: =AW45+AX45-(AY45+AZ45) -> -0.4367283282 | BC45: =BC44 -> 0.468491 | BD45: =+BA45+BC45*(-S2) -> -0.3899340622 | BF45: 16752.61553 | BG45: 2.195877863 | BH45: 0.0208 | BJ45: =$D$7 -> 0 | BM45: 1
B46: 3 | C46: 111 | D46: United States | E46: 2016 | V46: 0 | Y46: n.a. | AL46: 0.0156286774 | AM46: 1.015628677 | AP46: =$D$8+K4 -> 0 | AQ46: =PRODUCT(AX$54:AX54) ->  | AR46: Weo g pd1 | BB46: 2017 | BF46: 17121.17307 | BG46: 1.56286774 | BH46: 0.022 | BJ46: 0 | BM46: 1 | BN46: =(Data!AA43+AR31+AA2*$S$2)+((BQ46-BR46)*BP46) ->  | BP46: =Data!AH43+AV31 ->  | BQ46: =Data!AK43+AU31 ->  | BR46: =Data!AL43+AT31 -> 
B47: 4 | C47: 111 | D47: United States | E47: 2017 | V47: 0 | Y47: n.a. | AL47: 0.01267292748 | AM47: 1.012672927 | AP47: =$D$8+K5 -> 0 | AQ47: =PRODUCT(AX$54:AX55) ->  | AR47: Weo g pd2 | BB47: 2018 | BF47: 17532.08122 | BG47: 1.267292748 | BH47: 0.024 | BJ47: 0 | BM47: 1 | BN47: =(Data!AA44+AR32+AA3*$S$2)+((BQ47-BR47)*BP47) ->  | BP47: =Data!AH44+AV32 ->  | BQ47: =Data!AK44+AU32 ->  | BR47: =Data!AL44+AT32 -> 
B48: 5 | C48: 111 | D48: United States | E48: 2018 | V48: 0 | Y48: n.a. | AL48: 0.01599554823 | AM48: 1.015995548 | AP48: =$D$8+K6 -> 0 | AQ48: =PRODUCT(AX$54:AX56) ->  | AR48: Weo g pd3 | BB48: 2019 | BF48: 17935.31909 | BG48: 1.599554823 | BH48: 0.023 | BJ48: 0 | BM48: 1 | BN48: =(Data!AA45+AR33+AA4*$S$2)+((BQ48-BR48)*BP48) ->  | BP48: =Data!AH45+AV33 ->  | BQ48: =Data!AK45+AU33 ->  | BR48: =Data!AL45+AT33 -> 
B49: 6 | C49: 111 | D49: United States | E49: 2019 | V49: 0 | Y49: n.a. | AL49: 0.02239755501 | AM49: 1.022397555 | AQ49: =PRODUCT(AX$54:AX57) ->  | AR49: Weo g pd4 | BB49: 2020 | BF49: 18326.30905 | BG49: 2.239755501 | BH49: 0.0218 | BJ49: 0 | BM49: 1 | BN49: =(Data!AA46+AR34+AA5*$S$2)+((BQ49-BR49)*BP49) ->  | BP49: =Data!AH46+AV34 ->  | BQ49: =Data!AK46+AU34 ->  | BR49: =Data!AL46+AT34 -> 
B50: 7 | C50: 111 | D50: United States | E50: 2020 | V50: 0 | Y50: n.a. | AL50: 0.02432931301 | AM50: 1.024329313 | AQ50: =PRODUCT(AX$54:AX58) ->  | AR50: Weo g pd5 | BB50: 2021 | BF50: 18711.16154 | BG50: 2.432931301 | BH50: =IFERROR(BF50/BF49-1,IFERROR(BF49/BF48-1,"n.a.")) -> 0.021 | BJ50: 0 | BM50: 1 | BN50: =(Data!AA47+AR35+AA6*$S$2)+((BQ50-BR50)*BP50) ->  | BP50: =Data!AH47+AV35 ->  | BQ50: =Data!AK47+AU35 ->  | BR50: =Data!AL47+AT35 -> 
B51: 8 | C51: 111 | D51: United States | E51: 2021 | V51: =V50*(1+AN51) -> 0 | Y51: n.a. | AL51: =(1-$G$7)*AL50+$G$6*$G$7 -> 0.02432931301 | AM51: 1.024329313 | AN51: =IF($B51-7>$G$3,$G$2,AN50+($G$2-AN$50)/$G$3) -> 0 | AO51: 1 | AQ51: =PRODUCT(AX$54:AX59) ->  | AR51: Weo g pd6 | BB51: 2022 | BF51: n.a. | BG51: n.a. | BH51: n.a. | BJ51: 0 | BM51: 1 | BN51: =(Data!AA48+AR36+AA7*$S$2)+((BQ51-BR51)*BP51) ->  | BP51: =Data!AH48+AV36 ->  | BQ51: =Data!AK48+AU36 ->  | BR51: =Data!AL48+AT36 -> 
B52: 9 | C52: 111 | D52: United States | E52: 2022 | T52: =BO60+($T$2*AA8)+BP60 ->  | V52: =V51*(1+AN52) -> 0 | W52: =+W51*(1+X52) ->  | AD52: =+W52/V52 ->  | AF52: =+Y52/V52 ->  | AH52: =+AF52*(1-BM52*($D$7)) ->  | AL52: 0.02432931301 | AM52: 1.024329313 | AN52: 0 | AO52: 1
B53: 10 | C53: 111 | D53: United States | E53: 2023 | T53: =BO60+($S$2*AA8)+BP60 ->  | U53: PV of trunc sum at the solution ER, cell T53: | V53: =V52*(1+AN53) -> 0 | W53: =+W52*(1+X53) ->  | AD53: =+W53/V53 ->  | AF53: =+Y53/V53 ->  | AL53: 0.02432931301 | AM53: 1.024329313 | AN53: 0 | AO53: 1 | AU53: Shocks to Growth | AW53: Shocks to returns | AX53: Shocks to Discount | BN53: PV of truncated Sum
B54: 11 | C54: 111 | D54: United States | E54: 2024 | V54: =V53*(1+AN54) -> 0 | AF54: =+Y54/V54 ->  | AH54: =+AF54*(1-BM54*($D$7)) ->  | AL54: 0.02432931301 | AM54: 1.024329313 | AN54: 0 | AO54: 1 | AS54: 2017 | AT54: Weo g pd1 | AU54: =LN(Data!AQ43)-LN(Data!AQ42)+AS31 ->  | AV54: r1 | AW54: =BR46 ->  | AX54: =(1+AU54)/(1+AW54) ->  | BB54: 2017 | BN54: =AQ46*((Data!AA43+AR31)+((BQ46-BR46)*BP46)) ->  | BO54: =AQ46*(Data!AA43+AR31) ->  | BP54: =AQ46*((BQ46-BR46)*BP46) -> 
B55: 12 | C55: 111 | D55: United States | E55: 2025 | V55: =V54*(1+AN55) -> 0 | AL55: 0.02432931301 | AM55: 1.024329313 | AN55: 0 | AO55: 1 | AS55: 2018 | AT55: Weo g pd2 | AU55: =LN(Data!AQ44)-LN(Data!AQ43)+AS32 ->  | AV55: r2 | BB55: 2018 | BN55: =AQ47*((Data!AA44+AR32)+((BQ47-BR47)*BP47)) ->  | BO55: =AQ47*(Data!AA44+AR32) ->  | BP55: =AQ47*((BQ47-BR47)*BP47) -> 
B56: 13 | C56: 111 | D56: United States | E56: 2026 | V56: 0 | AL56: 0.02432931301 | AM56: 1.024329313 | AN56: 0 | AO56: 1 | AS56: 2019 | AT56: Weo g pd3 | AU56: =LN(Data!AQ45)-LN(Data!AQ44)+AS33 ->  | AV56: r3 | BB56: 2019 | BN56: =AQ48*((Data!AA45+AR33)+((BQ48-BR48)*BP48)) ->  | BO56: =AQ48*(Data!AA45+AR33) -> 
B57: 14 | C57: 111 | D57: United States | E57: 2027 | V57: 0 | AL57: 0.02432931301 | AM57: =1+AL57 -> 1.024329313 | AN57: 0 | AO57: =1+AN57 -> 1 | AS57: 2020 | AT57: Weo g pd4 | AU57: =LN(Data!AQ46)-LN(Data!AQ45)+AS34 ->  | AV57: r4 | BB57: 2020 | BN57: =AQ49*((Data!AA46+AR34)+((BQ49-BR49)*BP49)) ->  | BO57: =AQ49*(Data!AA46+AR34) -> 
B58: 15 | C58: 111 | D58: United States | E58: 2028 | V58: 0 | AL58: 0.02432931301 | AM58: 1.024329313 | AN58: 0 | AO58: 1 | AS58: 2021 | AT58: Weo g pd5 | AU58: =LN(Data!AQ47)-LN(Data!AQ46)+AS35 ->  | AV58: r5 | BB58: 2021 | BN58: =AQ50*((Data!AA47+AR35)+((BQ50-BR50)*BP50)) ->  | BO58: =AQ50*(Data!AA47+AR35) -> 
B59: 16 | C59: 111 | D59: United States | E59: 2029 | V59: 0 | AL59: 0.02432931301 | AM59: 1.024329313 | AN59: 0 | AO59: 1 | AS59: 2022 | AT59: Weo g pd6 | AU59: =LN(Data!AQ48)-LN(Data!AQ47)+AS36 ->  | AV59: r6 | BB59: 2022 | BN59: =AQ51*((Data!AA48+AR36)+((BQ51-BR51)*BP51)) ->  | BO59: =AQ51*(Data!AA48+AR36) -> 
AL60: 0.02432931301 | AM60: 1.024329313 | BN60: =_xll.RiskOutput()+SUM(BN54:BN59) ->  | BO60: =_xll.RiskOutput()+SUM(BO54:BO59) ->  | BP60: =_xll.RiskOutput()+SUM(BP54:BP59) -> 
AL61: 0.02432931301 | AM61: 1.024329313 | BN61: All | BO61: NX only | BP61: Fin. Chan only

Sheet Nonlinear_1 (2) (hidden)
A5: t | C5: A/M | D5: residuals | E5: Forecast | J5: A/M | K5: residuals | L5: forecast
A6: 1 | B6: =Data!#REF! ->  | C6: =IFERROR(#REF!,#N/A) ->  | D6: =IFERROR(C6-E6,#N/A) ->  | E6: =IFERROR(#REF!,#N/A) ->  | G6: =Data!D3 -> 111 | H6: =Data!D2 -> United States | I6: =#REF! ->  | J6: =C6 ->  | K6: =J6-L6 ->  | L6: =IF(D6="#N/A",#N/A,E6) -> 
A7: 2 | B7: =Data!#REF! ->  | C7: =IFERROR(#REF!,#N/A) ->  | D7: =IFERROR(C7-E7,#N/A) ->  | E7: =IFERROR(#REF!,#N/A) ->  | G7: =G6 -> 111 | H7: =H6 -> United States | I7: =#REF! ->  | J7: =C7 ->  | K7: =J7-L7 ->  | L7: =IF(D7="#N/A",#N/A,E7) -> 
A8: 3 | B8: =Data!E8 -> 1982 | C8: =IFERROR(#REF!,#N/A) ->  | E8: =IFERROR(#REF!,#N/A) ->  | G8: =G7 -> 111 | H8: =H7 -> United States | I8: =#REF! -> 
A9: 4 | B9: =Data!E9 -> 1983 | C9: =IFERROR(#REF!,#N/A) ->  | E9: =IFERROR(#REF!,#N/A) ->  | G9: 111 | H9: United States | I9: =#REF! -> 
A10: 5 | B10: =Data!E10 -> 1984 | C10: =IFERROR(#REF!,#N/A) ->  | E10: =IFERROR(#REF!,#N/A) ->  | G10: 111 | H10: United States | I10: =#REF! -> 
A11: 6 | B11: =Data!E11 -> 1985 | C11: =IFERROR(#REF!,#N/A) ->  | E11: =IFERROR(#REF!,#N/A) ->  | G11: 111 | H11: United States | I11: =#REF! -> 
A12: 7 | B12: =Data!E12 -> 1986 | C12: =IFERROR(#REF!,#N/A) ->  | E12: =IFERROR(#REF!,#N/A) ->  | G12: 111 | H12: United States | I12: =#REF! -> 
A13: 8 | B13: =Data!E13 -> 1987 | C13: =IFERROR(#REF!,#N/A) ->  | E13: =IFERROR(#REF!,#N/A) ->  | G13: 111 | H13: United States | I13: =#REF! -> 
A14: 9 | B14: =Data!E14 -> 1988 | C14: =IFERROR(#REF!,#N/A) ->  | E14: =IFERROR(#REF!,#N/A) ->  | G14: 111 | H14: United States | I14: =#REF! -> 
A15: 10 | B15: =Data!E15 -> 1989 | C15: =IFERROR(#REF!,#N/A) ->  | E15: =IFERROR(#REF!,#N/A) ->  | G15: 111 | H15: United States | I15: =#REF! -> 
A16: 11 | B16: =Data!E16 -> 1990 | C16: =IFERROR(#REF!,#N/A) ->  | E16: =IFERROR(#REF!,#N/A) ->  | G16: 111 | H16: United States | I16: =#REF! -> 
A17: 12 | B17: =Data!E17 -> 1991 | C17: =IFERROR(#REF!,#N/A) ->  | E17: =IFERROR(#REF!,#N/A) ->  | G17: 111 | H17: United States | I17: =#REF! -> 
A18: 13 | B18: =Data!E18 -> 1992 | C18: =IFERROR(#REF!,#N/A) ->  | E18: =IFERROR(#REF!,#N/A) ->  | G18: 111 | H18: United States | I18: =#REF! -> 
A19: 14 | B19: =Data!E19 -> 1993 | C19: =IFERROR(#REF!,#N/A) ->  | E19: =IFERROR(#REF!,#N/A) ->  | G19: 111 | H19: United States | I19: =#REF! -> 
A20: 15 | B20: =Data!E20 -> 1994 | C20: =IFERROR(#REF!,#N/A) ->  | E20: =IFERROR(#REF!,#N/A) ->  | G20: 111 | H20: United States | I20: =#REF! -> 
A21: 16 | B21: =Data!E21 -> 1995 | C21: =IFERROR(#REF!,#N/A) ->  | E21: =IFERROR(#REF!,#N/A) ->  | G21: 111 | H21: United States | I21: =#REF! -> 
A22: 17 | B22: =Data!E22 -> 1996 | C22: =IFERROR(#REF!,#N/A) ->  | E22: =IFERROR(#REF!,#N/A) ->  | G22: 111 | H22: United States | I22: =#REF! -> 
A23: 18 | B23: =Data!E23 -> 1997 | C23: =IFERROR(#REF!,#N/A) ->  | E23: =IFERROR(#REF!,#N/A) ->  | G23: 111 | H23: United States | I23: =#REF! -> 
A24: 19 | B24: =Data!E24 -> 1998 | C24: =IFERROR(#REF!,#N/A) ->  | E24: =IFERROR(#REF!,#N/A) ->  | G24: 111 | H24: United States | I24: =#REF! -> 
A25: 20 | B25: =Data!E25 -> 1999 | C25: =IFERROR(#REF!,#N/A) ->  | E25: =IFERROR(#REF!,#N/A) ->  | G25: 111 | H25: United States | I25: =#REF! -> 
A26: 21 | B26: =Data!E26 -> 2000 | C26: =IFERROR(#REF!,#N/A) ->  | E26: =IFERROR(#REF!,#N/A) ->  | G26: 111 | H26: United States | I26: =#REF! -> 
A27: 22 | B27: =Data!E27 -> 2001 | C27: =IFERROR(#REF!,#N/A) ->  | E27: =IFERROR(#REF!,#N/A) ->  | G27: 111 | H27: United States | I27: =#REF! -> 
A28: 23 | B28: =Data!E28 -> 2002 | C28: =IFERROR(#REF!,#N/A) ->  | E28: =IFERROR(#REF!,#N/A) ->  | G28: 111 | H28: United States | I28: =#REF! -> 
A29: 24 | B29: =Data!E29 -> 2003 | C29: =IFERROR(#REF!,#N/A) ->  | E29: =IFERROR(#REF!,#N/A) ->  | G29: 111 | H29: United States | I29: =#REF! -> 
A30: 25 | B30: =Data!E30 -> 2004 | C30: =IFERROR(#REF!,#N/A) ->  | E30: =IFERROR(#REF!,#N/A) ->  | G30: 111 | H30: United States | I30: =#REF! -> 
A31: 26 | B31: =Data!E31 -> 2005 | C31: =IFERROR(#REF!,#N/A) ->  | E31: =IFERROR(#REF!,#N/A) ->  | G31: 111 | H31: United States | I31: =#REF! -> 
A32: 27 | B32: =Data!E32 -> 2006 | C32: =IFERROR(#REF!,#N/A) ->  | E32: =IFERROR(#REF!,#N/A) ->  | G32: 111 | H32: United States | I32: =#REF! -> 
A33: 28 | B33: =Data!E33 -> 2007 | C33: =IFERROR(#REF!,#N/A) ->  | E33: =IFERROR(#REF!,#N/A) ->  | G33: 111 | H33: United States | I33: =#REF! -> 
A34: 29 | B34: =Data!E34 -> 2008 | C34: =IFERROR(#REF!,#N/A) ->  | E34: =IFERROR(#REF!,#N/A) ->  | G34: 111 | H34: United States | I34: =#REF! -> 
A35: 30 | B35: =Data!E35 -> 2009 | C35: =IFERROR(#REF!,#N/A) ->  | E35: =IFERROR(#REF!,#N/A) ->  | G35: 111 | H35: United States | I35: =#REF! -> 
A36: 31 | B36: =Data!E36 -> 2010 | C36: =IFERROR(#REF!,#N/A) ->  | E36: =IFERROR(#REF!,#N/A) ->  | G36: 111 | H36: United States | I36: =#REF! ->  | L36: =IF(D36="#N/A",#N/A,E36) -> 
A37: 32 | B37: =Data!E37 -> 2011 | C37: =IFERROR(#REF!,#N/A) ->  | E37: =IFERROR(#REF!,#N/A) ->  | G37: 111 | H37: United States | I37: =#REF! -> 
A38: 33 | B38: =Data!E38 -> 2012 | C38: =IFERROR(#REF!,#N/A) ->  | E38: =IFERROR(#REF!,#N/A) ->  | G38: 111 | H38: United States | I38: =#REF! -> 
A39: 34 | B39: =Data!E39 -> 2013 | C39: =IFERROR(#REF!,#N/A) ->  | E39: =IFERROR(#REF!,#N/A) ->  | G39: 111 | H39: United States | I39: =#REF! -> 
B40: =Data!E40 -> 2014
B41: =Data!E41 -> 2015
B42: =Data!E42 -> 2016
B43: =Data!E43 -> 2017
B44: =Data!E44 -> 2018
B45: =Data!E45 -> 2019
B46: =Data!E46 -> 2020
B47: =Data!E47 -> 2021
B48: =Data!E48 -> 2022
B49: =Data!E49 -> 0
B50: =Data!E50 -> 0
B51: =Data!E51 -> 0
B52: =Data!#REF! -> 
B53: =Data!#REF! -> 
B54: =Data!#REF! -> 
B55: =Data!#REF! -> 
B56: =Data!#REF! -> 
B57: =Data!#REF! -> 
B58: =Data!#REF! -> 
B59: =Data!#REF! -> 
B60: =Data!#REF! -> 
B61: =Data!#REF! -> 
B62: =Data!#REF! -> 
B63: =Data!#REF! -> 
B64: =Data!#REF! -> 
B65: =Data!#REF! -> 
B66: =Data!#REF! -> 
B67: =Data!#REF! -> 
B68: =Data!#REF! -> 
B69: =Data!#REF! -> 
B70: =Data!#REF! -> 
B71: =Data!#REF! -> 
B72: =Data!#REF! -> 
B73: =Data!#REF! -> 
B74: =Data!#REF! -> 
B75: =Data!#REF! -> 
B76: =Data!#REF! -> 
B77: =Data!#REF! -> 
B78: =Data!#REF! -> 
B79: =Data!#REF! -> 
B80: =Data!#REF! -> 
B81: =Data!#REF! -> 
B82: =Data!#REF! -> 
B83: =Data!#REF! -> 
B84: =Data!#REF! -> 
B85: =Data!#REF! -> 
B86: =Data!#REF! -> 
B87: =Data!#REF! -> 
B88: =Data!#REF! -> 
B89: =Data!#REF! -> 
B90: =Data!#REF! -> 
B91: =Data!#REF! -> 
B92: =Data!#REF! -> 
B93: =Data!#REF! -> 
B94: =Data!#REF! -> 
B95: =Data!#REF! -> 
B96: =Data!#REF! -> 
B97: =Data!#REF! -> 
B98: =Data!#REF! -> 
B99: =Data!#REF! -> 
B100: =Data!#REF! -> 
B101: =Data!#REF! -> 
B102: =Data!#REF! -> 
B103: =Data!#REF! -> 
B104: =Data!#REF! -> 
B105: =Data!#REF! -> 
B106: =Data!#REF! -> 
B107: =Data!#REF! -> 
B108: =Data!#REF! -> 
B109: =Data!#REF! -> 
B110: =Data!#REF! -> 
B111: =Data!#REF! -> 
B112: =Data!#REF! -> 
B113: =Data!#REF! -> 
B114: =Data!#REF! -> 
B115: =Data!#REF! -> 
B116: =Data!#REF! -> 
B117: =Data!#REF! -> 
B118: =Data!#REF! -> 
B119: =Data!#REF! -> 
B120: =Data!#REF! -> 
B121: =Data!#REF! -> 
B122: =Data!#REF! -> 
B123: =Data!#REF! -> 
B124: =Data!#REF! -> 
B125: =Data!#REF! -> 
B126: =Data!#REF! -> 
B127: =Data!#REF! -> 
B128: =Data!#REF! -> 
